bitfinex-derivatives/quotes_BNBF0:USTF0_20250510
["timestamp","ask_amount","ask_price","bid_price","bid_amount"]
[1746892216560,0.30660738,652.3,651.21,0.92887311]
[1746892216765,0.30660738,652.3,651.22,0.92887311]
[1746892216962,0.30660738,652.3,651.23,2.0787411]
[1746892217165,0.30660738,652.3,651.23,1.14986799]
[1746892217366,0.2819534,652.29,651.24,1.14986799]
[1746892217566,0.30662149,652.27,651.24,1.14986799]
[1746892217963,0.2819534,652.26,651.25,1.14986799]
[1746892218160,0.30663559,652.24,651.25,1.14986799]
[1746892218564,0.30663559,652.24,651.26,1.14986799]
[1746892218869,0.30663559,652.24,651.27,1.14986799]
[1746892219373,0.30663559,652.24,651.14,0.26690801]
[1746892219571,0.30663559,652.24,651.15,0.92863523]
[1746892219869,0.30663559,652.24,651.16,0.92864813]
[1746892220069,0.30663559,652.24,651.17,2.07810968]
[1746892220269,0.30663559,652.24,651.18,0.92864813]
[1746892220668,0.30663559,652.24,651.17,1.14946155]
[1746892220869,0.30663559,652.24,651.18,2.07804132]
[1746892221067,0.30663559,652.24,651.18,1.14946155]
[1746892221368,0.30663559,652.24,651.15,1.14946155]
[1746892221572,0.30663559,652.24,651.16,0.92852341]
[1746892221763,0.30663559,652.24,651.15,1.14946155]
[1746892221966,0.28197063,652.23,651.15,1.14946155]
[1746892222266,0.28197063,652.23,651.17,1.14946155]
[1746892222566,0.28197063,652.23,651.14,0.26690801]
[1746892223970,0.30664969,652.21,651.14,0.26690801]
[1746892224371,0.28197063,652.2,651.14,0.26690801]
[1746892224571,0.3066638,652.18,651.14,0.26690801]
[1746892224872,0.28197063,652.17,651.14,0.26690801]
[1746892225373,0.30667791,652.15,651.14,0.26690801]
[1746892225771,0.28197063,652.14,651.14,0.26690801]
[1746892225970,0.30669201,652.12,651.14,0.26690801]
[1746892226375,0.28197063,652.11,651.14,0.26690801]
[1746892228376,0.30670612,652.09,651.14,0.26690801]
[1746892228769,0.28197063,652.08,651.14,0.26690801]
[1746892228971,0.30672024,652.06,651.14,0.26690801]
[1746892229577,0.28201575,652.05,651.14,0.26690801]
[1746892229772,0.30673435,652.03,651.14,0.26690801]
[1746892231071,0.30673435,652.03,650.29,0.97084576]
[1746892231276,0.30673435,652.03,651.14,0.26706778]
[1746892231476,0.28205156,652.02,651.14,0.26706778]
[1746892231669,0.28205156,652.02,650.23,0.97084576]
[1746892231871,0.28205156,652.02,650.24,1.19827315]
[1746892232073,0.28205156,652.02,650.25,0.92714091]
[1746892232272,0.28205156,652.02,650.26,2.07818014]
[1746892232471,0.28205156,652.02,650.27,0.92714091]
[1746892232674,0.28205156,652.02,650.28,2.07818014]
[1746892232870,0.28205156,652.02,650.29,1.19827315]
[1746892233176,0.28205156,652.02,650.3,0.92714091]
[1746892233374,0.28205156,652.02,650.31,2.07818014]
[1746892233570,0.28205156,652.02,650.32,1.19827315]
[1746892233775,0.28205156,652.02,650.33,0.92714091]
[1746892233971,0.30674846,652.0,650.34,2.07818014]
[1746892234177,0.30674846,652.0,650.35,1.19827315]
[1746892234376,0.30674846,652.0,650.36,0.92714091]
[1746892234576,0.30674846,652.0,650.37,2.07818014]
[1746892234775,0.30674846,652.0,650.38,2.34931238]
[1746892234978,0.30674846,652.0,650.39,0.92714091]
[1746892235179,0.30674846,652.0,650.4,0.92619256]
[1746892235376,0.30674846,652.0,650.41,2.07723179]
[1746892235578,0.30674846,652.0,650.42,0.92619256]
[1746892235873,0.30674846,652.0,650.43,1.1973248]
[1746892236180,0.30674846,652.0,650.44,1.1973248]
[1746892236379,0.30674846,652.0,650.45,0.92619256]
[1746892236581,0.30674846,652.0,650.46,0.92619256]
[1746892236781,0.30674846,652.0,650.47,0.92619256]
[1746892236980,0.30674846,652.0,650.48,2.07723179]
[1746892237282,0.30674846,652.0,650.49,1.1973248]
[1746892237479,0.30674846,652.0,650.5,1.1973248]
[1746892237680,0.30674846,652.0,650.51,0.92619256]
[1746892237875,0.30674846,652.0,650.52,2.07723179]
[1746892238077,0.30674846,652.0,650.53,0.92619256]
[1746892238281,0.30674846,652.0,650.54,1.19713079]
[1746892238482,0.30674846,652.0,650.55,2.07723179]
[1746892238682,0.30674846,652.0,650.56,1.19713079]
[1746892238884,0.30674846,652.0,650.57,0.92619256]
[1746892239083,0.30674846,652.0,650.58,2.07723179]
[1746892239283,0.30674846,652.0,650.59,0.92619256]
[1746892239480,0.30674846,652.0,650.6,2.07723179]
[1746892239685,0.30674846,652.0,650.61,0.92619256]
[1746892239885,0.30674846,652.0,650.62,2.07723179]
[1746892240085,0.30674846,652.0,650.63,0.92619256]
[1746892240385,0.30674846,652.0,650.64,2.34817002]
[1746892240585,0.30674846,652.0,650.65,0.92619256]
[1746892240786,0.30674846,652.0,650.66,0.92619256]
[1746892240986,0.30674846,652.0,650.67,0.92619256]
[1746892241183,0.30674846,652.0,650.68,2.07723179]
[1746892241388,0.30674846,652.0,650.69,0.92619256]
[1746892241589,0.30674846,652.0,650.7,0.92619256]
[1746892241787,0.30674846,652.0,650.71,2.07723179]
[1746892241988,0.30674846,652.0,650.72,0.92619256]
[1746892242188,0.30674846,652.0,650.73,0.92619256]
[1746892242388,0.30674846,652.0,650.74,1.19713079]
[1746892242587,0.30674846,652.0,650.75,0.92619256]
[1746892242787,0.30674846,652.0,650.76,2.07723179]
[1746892242992,0.30674846,652.0,650.77,0.92619256]
[1746892243288,0.30674846,652.0,650.78,0.92619256]
[1746892243482,0.30674846,652.0,650.79,0.92619256]
[1746892243688,0.30674846,652.0,650.8,2.07723179]
[1746892243990,0.30674846,652.0,650.81,0.92619256]
[1746892244183,0.30674846,652.0,650.82,0.92619256]
[1746892244386,0.30674846,652.0,650.83,0.92619256]
[1746892244586,0.30674846,652.0,650.84,0.92619256]
[1746892244787,0.30674846,652.0,650.85,2.07723179]
[1746892244988,0.30674846,652.0,650.86,2.07723179]
[1746892245186,0.30674846,652.0,650.87,0.92619256]
[1746892245389,0.30674846,652.0,650.88,0.92619256]
[1746892245586,0.30674846,652.0,650.89,0.92619256]
[1746892245790,0.30674846,652.0,650.9,0.92619256]
[1746892246090,0.30674846,652.0,650.91,0.92619256]
[1746892246290,0.30674846,652.0,650.92,2.07723179]
[1746892246484,0.30674846,652.0,650.93,0.92619256]
[1746892246790,0.30674846,652.0,650.94,0.92482022]
[1746892246989,0.30674846,652.0,650.95,1.15103923]
[1746892247487,0.30674846,652.0,650.96,1.15103923]
[1746892248090,0.30674846,652.0,650.97,1.15103923]
[1746892248685,0.30674846,652.0,650.98,1.15103923]
[1746892249091,0.30674846,652.0,650.99,1.15103923]
[1746892249892,0.30674846,652.0,651.0,1.15103923]
[1746892250291,0.30674846,652.0,651.01,0.92525075]
[1746892250488,0.30674846,652.0,651.02,2.07628998]
[1746892250685,0.30674846,652.0,651.03,0.92525075]
[1746892250889,0.30674846,652.0,651.04,2.07628998]
[1746892251086,0.30674846,652.0,651.05,0.92525075]
[1746892251290,0.30674846,652.0,651.04,1.15103923]
[1746892251291,0.30674846,652.0,651.06,0.92525075]
[1746892251493,0.30674846,652.0,651.07,2.07541505]
[1746892251694,0.30674846,652.0,651.08,0.92437582]
[1746892251894,0.30674846,652.0,651.09,2.07541505]
[1746892252094,0.30674846,652.0,651.1,0.92437582]
[1746892252289,0.30674846,652.0,651.09,1.15103923]
[1746892252290,0.30674846,652.0,651.11,0.92437582]
[1746892252489,0.30674846,652.0,651.12,0.92437582]
[1746892252693,0.30674846,652.0,651.13,0.92437582]
[1746892252891,0.30674846,652.0,651.14,0.92437582]
[1746892253594,0.30674846,652.0,651.15,1.15103923]
[1746892253790,0.30674846,652.0,651.16,0.92437582]
[1746892254295,0.30674846,652.0,651.17,1.15103923]
[1746892254594,0.30674846,652.0,651.18,0.92437582]
[1746892254996,0.30674846,652.0,651.19,1.15103923]
[1746892255195,0.30674846,652.0,651.2,0.92462036]
[1746892255396,0.30674846,652.0,651.21,0.92462036]
[1746892255796,0.30674846,652.0,651.22,1.15103923]
[1746892256294,0.30674846,652.0,651.23,1.15103923]
[1746892256495,0.30674846,652.0,651.24,1.15103923]
[1746892256994,0.30674846,652.0,651.25,1.15103923]
[1746892257595,0.30674846,652.0,651.26,1.15103923]
[1746892258295,0.30674846,652.0,651.27,1.15103923]
[1746892258797,0.30674846,652.0,651.28,1.15103923]
[1746892259297,0.30674846,652.0,651.29,1.15103923]
[1746892259797,0.30674846,652.0,651.3,1.15103923]
[1746892260100,0.30674846,652.0,651.17,0.26689573]
[1746892260296,0.30674846,652.0,651.18,0.92475116]
[1746892260491,0.30674846,652.0,651.19,0.92475116]
[1746892261097,0.30674846,652.0,651.2,1.14847437]
[1746892261398,0.30674846,652.0,651.21,2.07322553]
[1746892261598,0.30674846,652.0,651.21,1.14847437]
[1746892262098,0.30674846,652.0,651.19,1.14847437]
[1746892262497,0.30674846,652.0,651.18,0.26690494]
[1746892263994,0.30674846,652.0,650.23,0.97084576]
[1746892264194,0.30674846,652.0,650.24,0.9260444]
[1746892264400,0.30674846,652.0,651.18,0.26700528]
[1746892264600,0.30674846,652.0,650.25,1.15043501]
[1746892264799,0.30674846,652.0,650.26,0.92618421]
[1746892265002,0.30674846,652.0,650.27,2.07661922]
[1746892265295,0.30674846,652.0,650.28,0.92625056]
[1746892265500,0.30674846,652.0,650.29,0.9262501]
[1746892265703,0.30674846,652.0,650.3,0.9262501]
[1746892265894,0.30674846,652.0,650.31,2.07692857]
[1746892266094,0.30674846,652.0,650.32,0.92649356]
[1746892266297,0.30674846,652.0,650.33,0.92649356]
[1746892266504,0.30674846,652.0,650.34,0.92649356]
[1746892266694,0.30674846,652.0,650.35,0.92649356]
[1746892266896,0.30674846,652.0,650.36,0.92649356]
[1746892267095,0.30674846,652.0,650.37,0.92649356]
[1746892267299,0.30674846,652.0,650.38,0.92649356]
[1746892267496,0.30674846,652.0,650.39,0.92649356]
[1746892267699,0.30674846,652.0,650.4,2.07692857]
[1746892267900,0.30674846,652.0,650.41,0.92649356]
[1746892268103,0.30674846,652.0,650.42,0.27089294]
[1746892268296,0.30674846,652.0,650.43,2.07692857]
[1746892268498,0.30674846,652.0,650.44,2.07692857]
[1746892268700,0.30674846,652.0,650.45,0.92649356]
[1746892268900,0.28203877,651.99,650.45,1.1973865]
[1746892269099,0.30674846,652.0,650.46,2.07692857]
[1746892269299,0.30674846,652.0,650.47,0.92649356]
[1746892269503,0.28203863,651.99,650.47,1.19739726]
[1746892269702,0.28203863,651.99,650.48,1.19739726]
[1746892269909,0.28203863,651.99,650.49,0.92649356]
[1746892270103,0.28203863,651.99,650.49,1.19739726]
[1746892270302,0.28203863,651.99,650.5,1.19739726]
[1746892270501,0.28203863,651.99,650.51,0.92649356]
[1746892270704,0.28203863,651.99,650.51,1.19739726]
[1746892270901,0.28203863,651.99,650.52,0.92649356]
[1746892271100,0.30674846,652.0,650.53,1.42133871]
[1746892271301,0.30674846,652.0,650.54,2.07709023]
[1746892271501,0.30674846,652.0,650.55,0.92665522]
[1746892271705,0.30674846,652.0,650.56,1.15043501]
[1746892271905,0.30674846,652.0,650.57,0.92665522]
[1746892272106,0.30674846,652.0,650.58,0.92665522]
[1746892272302,0.30674846,652.0,650.59,0.92665522]
[1746892272506,0.30674846,652.0,650.6,1.19755892]
[1746892272707,0.30674846,652.0,650.61,0.92665522]
[1746892272901,0.30674846,652.0,650.62,2.07722961]
[1746892273101,0.28202944,651.99,650.63,1.19764236]
[1746892273302,0.28202944,651.99,650.64,0.9267946]
[1746892273506,0.28202944,651.99,650.65,1.42128277]
[1746892273708,0.28202944,651.99,650.66,0.9267946]
[1746892274002,0.28202944,651.99,650.66,1.19764236]
[1746892274206,0.28202944,651.99,650.67,2.07722961]
[1746892274402,0.28202944,651.99,650.68,0.9267946]
[1746892274609,0.28202944,651.99,650.69,1.19769946]
[1746892274909,0.28202944,651.99,650.7,2.07728671]
[1746892275107,0.28202944,651.99,650.71,0.9268517]
[1746892275305,0.28202944,651.99,650.72,1.15043501]
[1746892275604,0.28202944,651.99,650.73,0.9268517]
[1746892275808,0.28202944,651.99,650.74,1.15043501]
[1746892276007,0.28202944,651.99,650.75,0.9268517]
[1746892276603,0.28202944,651.99,650.76,1.15043501]
[1746892277111,0.28202944,651.99,650.77,0.92683166]
[1746892277310,0.28202944,651.99,650.78,0.92683166]
[1746892277509,0.28202944,651.99,650.79,1.15043501]
[1746892278112,0.28202944,651.99,650.51,1.13519909]
[1746892278308,0.28202944,651.99,650.52,0.92733813]
[1746892278513,0.28202944,651.99,650.53,0.92733813]
[1746892278711,0.28202944,651.99,650.54,0.92733813]
[1746892278911,0.28202944,651.99,650.55,0.92733813]
[1746892279109,0.28202944,651.99,650.56,0.92733813]
[1746892279308,0.28202944,651.99,650.57,0.92733813]
[1746892279513,0.28202944,651.99,650.58,0.92733813]
[1746892279710,0.28202944,651.99,650.59,0.92733813]
[1746892279908,0.28202944,651.99,650.52,0.26709033]
[1746892280112,0.28202944,651.99,650.53,0.9268258]
[1746892280412,0.28202944,651.99,650.54,0.9268258]
[1746892280609,0.28202944,651.99,650.55,0.9268258]
[1746892280907,0.28202944,651.99,650.56,0.9268258]
[1746892281108,0.28202944,651.99,650.57,0.9268258]
[1746892281309,0.28202944,651.99,650.58,0.9268258]
[1746892281513,0.28202944,651.99,650.52,0.26709033]
[1746892281713,0.28202944,651.99,650.53,1.19820819]
[1746892281916,0.28202944,651.99,650.54,0.92623471]
[1746892282109,0.28202944,651.99,650.55,0.92623471]
[1746892282415,0.28202944,651.99,650.56,0.92623471]
[1746892282615,0.28202944,651.99,650.57,0.92623471]
[1746892282812,0.28202944,651.99,650.58,0.92623471]
[1746892283009,0.28202944,651.99,650.52,0.26709033]
[1746892283211,0.28202944,651.99,650.53,0.92600965]
[1746892283411,0.28202944,651.99,650.54,0.92569527]
[1746892283611,0.28202944,651.99,650.55,0.92569527]
[1746892283812,0.28202944,651.99,650.56,0.92569527]
[1746892284113,0.28202944,651.99,650.57,0.92569527]
[1746892284315,0.28202944,651.99,650.58,1.19758125]
[1746892284512,0.28202944,651.99,650.59,0.92569527]
[1746892284716,0.28202944,651.99,650.6,0.92569527]
[1746892285017,0.28202944,651.99,650.61,0.92569527]
[1746892285218,0.28202944,651.99,650.62,0.92569527]
[1746892285419,0.28202944,651.99,650.63,0.92569527]
[1746892285617,0.28202944,651.99,650.64,0.92569527]
[1746892285918,0.28202944,651.99,650.56,0.26708213]
[1746892286113,0.28202944,651.99,650.57,1.19792475]
[1746892286311,0.28202944,651.99,650.58,0.92594963]
[1746892286517,0.28202944,651.99,650.59,0.27197512]
[1746892286720,0.28202944,651.99,650.6,0.92594963]
[1746892286917,0.28202944,651.99,650.61,0.92594963]
[1746892287112,0.28202944,651.99,650.62,0.92594963]
[1746892287417,0.28202944,651.99,650.63,1.19792475]
[1746892287612,0.28202944,651.99,650.64,0.92594963]
[1746892287819,0.28202944,651.99,650.65,0.92594963]
[1746892288014,0.28202944,651.99,650.66,0.92594963]
[1746892288314,0.28202944,651.99,650.67,1.19792475]
[1746892288518,0.28202944,651.99,650.68,0.92594963]
[1746892288818,0.28202944,651.99,650.69,0.92594963]
[1746892289011,0.28202944,651.99,650.7,0.92594963]
[1746892289212,0.28202944,651.99,650.71,0.92594963]
[1746892289514,0.28202944,651.99,650.72,0.92594963]
[1746892289818,0.28202944,651.99,650.73,1.19792475]
[1746892290017,0.28202944,651.99,650.74,0.92594963]
[1746892290221,0.28202944,651.99,650.75,0.92594963]
[1746892290420,0.28202944,651.99,650.76,2.07577024]
[1746892290619,0.28202944,651.99,650.77,0.92514118]
[1746892290920,0.28202944,651.99,650.78,1.14982061]
[1746892291319,0.28202944,651.99,650.79,1.14982061]
[1746892291721,0.28202944,651.99,650.8,0.92503036]
[1746892291922,0.28202944,651.99,650.81,2.07477472]
[1746892292120,0.28202944,651.99,650.82,0.92495411]
[1746892292420,0.28202944,651.99,650.83,1.14982061]
[1746892292722,0.28202944,651.99,650.84,1.14982061]
[1746892292923,0.28202944,651.99,650.85,0.92475628]
[1746892293120,0.28202944,651.99,650.86,0.92475628]
[1746892293321,0.28202944,651.99,650.87,0.9245774]
[1746892293521,0.28202944,651.99,650.86,1.14982061]
[1746892293821,0.30674846,652.0,650.87,2.34594188]
[1746892294022,0.30674846,652.0,650.88,0.92448472]
[1746892294225,0.30674846,652.0,650.89,1.14982061]
[1746892294416,0.30674846,652.0,650.9,0.92448472]
[1746892294618,0.30674846,652.0,650.91,0.92448472]
[1746892294918,0.30674846,652.0,650.92,0.92448472]
[1746892295122,0.30674846,652.0,650.93,2.07430533]
[1746892295323,0.30674846,652.0,650.94,0.92448472]
[1746892295522,0.30674846,652.0,650.95,2.07430533]
[1746892295723,0.30674846,652.0,650.96,0.92448472]
[1746892295923,0.30674846,652.0,650.97,0.92448472]
[1746892296120,0.30674846,652.0,650.98,0.92448472]
[1746892296321,0.30674846,652.0,650.98,1.14982061]
[1746892296728,0.30674846,652.0,650.99,1.14982061]
[1746892297725,0.30674846,652.0,651.0,2.07379742]
[1746892297923,0.30674846,652.0,651.01,0.92392151]
[1746892298124,0.30674846,652.0,651.02,2.07374212]
[1746892298421,0.30674846,652.0,651.02,1.14982061]
[1746892298619,0.30674846,652.0,651.03,2.07367425]
[1746892298819,0.30674846,652.0,651.04,1.14982061]
[1746892299322,0.30674846,652.0,651.05,1.14982061]
[1746892299725,0.30674846,652.0,651.06,1.14982061]
[1746892300425,0.30674846,652.0,651.07,1.14982061]
[1746892300925,0.30674846,652.0,651.08,1.14982061]
[1746892301424,0.30674846,652.0,650.94,0.26695305]
[1746892302325,0.30674846,652.0,650.95,1.14744421]
[1746892302929,0.26695305,652.46,650.95,1.14744421]
[1746892303224,1.98097714,653.38,650.96,1.14744421]
[1746892303425,0.86527994,653.37,650.96,1.14744421]
[1746892303832,0.28200155,653.36,650.97,1.14744421]
[1746892304231,0.28200155,653.35,650.97,1.14744421]
[1746892304431,0.548841,653.35,650.98,1.14744421]
[1746892304632,0.28200155,653.34,650.98,1.14744421]
[1746892304833,0.28200155,653.33,650.98,1.14744421]
[1746892305034,0.28200155,653.33,650.99,1.14744421]
[1746892305227,0.28200155,653.32,650.99,1.14744421]
[1746892305529,0.28200155,653.31,650.99,1.14744421]
[1746892305736,0.28200155,653.31,650.95,0.26683945]
[1746892305929,0.28200155,653.3,650.95,0.26683945]
[1746892306131,0.28200155,653.3,649.94,0.97084576]
[1746892306330,0.28200155,653.3,649.95,0.92451557]
[1746892306533,0.28200155,653.3,649.96,0.92451557]
[1746892306733,0.28200155,653.3,649.97,0.92451557]
[1746892306936,0.86527994,653.29,649.98,2.0724657]
[1746892307236,0.28200155,653.28,649.99,1.19617468]
[1746892307535,0.28200155,653.28,650.0,2.0724657]
[1746892307737,0.28200155,653.27,650.01,2.0724657]
[1746892307932,0.28200155,653.27,650.02,0.92451557]
[1746892308137,0.86527994,653.26,650.03,2.0724657]
[1746892308334,0.86527994,653.26,650.04,2.0724657]
[1746892308541,0.86527994,653.25,650.05,0.92451557]
[1746892308738,0.86527994,653.25,650.06,2.0724657]
[1746892309039,1.98097714,652.99,650.08,0.97084576]
[1746892309340,1.98097714,652.99,650.09,2.0724657]
[1746892309537,1.98097714,652.99,650.1,0.92451557]
[1746892309735,0.86527994,652.98,650.11,2.07253777]
[1746892309932,0.86527994,652.98,650.12,0.92458764]
[1746892310237,0.28200155,652.97,650.13,1.19624675]
[1746892310436,0.28200155,652.97,650.14,2.07253777]
[1746892310633,0.28200155,652.97,650.15,1.19624675]
[1746892310937,0.28200155,652.96,650.16,0.92458764]
[1746892311137,0.28200155,652.96,650.17,0.92458764]
[1746892311437,0.28200155,652.95,650.18,1.19624675]
[1746892311637,0.28200155,652.95,650.19,0.92482645]
[1746892311838,0.28200155,652.94,650.2,0.92482645]
[1746892312035,1.98097714,652.84,650.2,0.92482645]
[1746892312236,1.98097714,652.84,650.21,1.41960924]
[1746892312432,1.98097714,652.84,650.22,0.92482645]
[1746892312637,0.86527994,652.83,650.23,1.14795013]
[1746892312833,0.86527994,652.83,650.24,0.92482645]
[1746892313038,0.28200155,652.82,650.24,1.19648556]
[1746892313339,0.28200155,652.81,650.25,1.19648556]
[1746892313638,0.28200155,652.81,650.26,0.92482645]
[1746892314039,0.28200155,652.81,650.27,1.14795013]
[1746892314243,0.28200155,652.81,650.28,0.92482645]
[1746892314440,0.28200155,652.8,650.28,0.92482645]
[1746892314637,0.28200155,652.79,650.29,1.41960924]
[1746892314835,0.28200155,652.79,650.3,0.92482645]
[1746892315034,2.24801213,652.82,650.3,0.92482645]
[1746892315035,0.28200155,652.78,650.3,1.19648556]
[1746892315261,0.28200155,652.78,650.31,0.92482645]
[1746892315442,0.28200155,652.77,650.31,1.19648556]
[1746892315641,0.28200155,652.77,650.32,2.07277658]
[1746892315834,0.28200155,652.76,650.33,1.19648556]
[1746892316037,0.28200155,652.76,650.34,2.07277658]
[1746892316236,0.28200155,652.75,650.35,0.92482645]
[1746892316439,0.54901708,652.75,650.35,0.92482645]
[1746892316640,0.28200155,652.74,650.36,1.41960924]
[1746892316839,0.28200155,652.74,650.37,0.92482645]
[1746892317036,0.28200155,652.73,650.38,1.14795013]
[1746892317241,0.30645705,652.62,650.39,0.92482645]
[1746892317437,0.30645705,652.62,650.39,1.19648556]
[1746892317641,0.28200155,652.61,650.4,2.34443569]
[1746892317843,0.28200155,652.61,650.41,2.07277658]
[1746892318039,0.28200155,652.6,650.42,0.92482645]
[1746892318236,0.28200155,652.59,650.42,0.92482645]
[1746892318441,0.28200155,652.59,650.43,1.41960924]
[1746892318641,0.28200155,652.59,650.44,0.92482645]
[1746892318839,0.28200155,652.58,650.44,1.19648556]
[1746892319038,0.28200155,652.58,650.45,0.92482645]
[1746892319244,0.3065228,652.48,650.46,1.14795013]
[1746892319439,0.3065228,652.48,650.47,2.07277658]
[1746892319637,0.3065228,652.48,650.48,0.92482645]
[1746892319839,0.28200155,652.47,650.49,1.45541065]
[1746892320039,0.28200155,652.47,650.5,0.92482645]
[1746892320243,0.28200155,652.47,650.5,1.19648556]
[1746892320440,0.28200155,652.47,650.51,2.07277658]
[1746892320641,0.28200155,652.47,650.52,0.92482645]
[1746892320839,0.28200155,652.47,650.53,0.27165911]
[1746892321045,0.28200155,652.47,650.54,2.07277658]
[1746892321340,0.28200155,652.47,650.55,2.07277658]
[1746892321537,0.28200155,652.47,650.56,0.92482645]
[1746892321742,0.28200155,652.47,650.56,1.19648556]
[1746892321942,0.28200155,652.47,650.57,1.19648556]
[1746892322143,0.28200155,652.47,650.58,2.07277658]
[1746892322339,0.28200155,652.47,650.59,0.92482645]
[1746892322741,0.28200155,652.47,650.6,0.27165911]
[1746892322941,0.28200155,652.47,650.61,2.07277658]
[1746892323144,0.28200155,652.47,650.62,0.92482645]
[1746892323445,0.28200155,652.47,650.63,0.27165911]
[1746892323643,0.28200155,652.47,650.64,0.92482645]
[1746892323843,0.3065228,652.48,650.64,2.07277658]
[1746892324044,0.3065228,652.48,650.65,0.92482645]
[1746892324245,0.28200982,652.47,650.66,1.14795013]
[1746892324441,0.54894854,652.47,650.67,1.19662529]
[1746892324741,0.30653689,652.45,650.68,2.07277658]
[1746892325044,0.30653689,652.45,650.69,0.92482645]
[1746892325345,0.30653689,652.45,650.69,2.07277658]
[1746892325542,0.30653689,652.45,650.7,0.92482645]
[1746892325748,0.28200982,652.44,650.71,1.14795013]
[1746892325947,0.28200982,652.44,650.72,0.92482645]
[1746892326141,0.28200982,652.44,650.72,1.19662529]
[1746892326345,0.28200982,652.44,650.73,0.92482645]
[1746892326641,0.30655099,652.42,650.73,2.34457542]
[1746892326841,0.30655099,652.42,650.74,2.07427779]
[1746892327045,0.30655099,652.42,650.75,0.92632766]
[1746892327249,0.2820144,652.41,650.76,1.14795013]
[1746892327446,0.54898691,652.41,650.77,0.92632766]
[1746892327650,0.2820144,652.4,650.78,0.27182933]
[1746892327848,0.2820144,652.4,650.79,0.92632766]
[1746892328146,0.2820144,652.4,650.79,2.07427779]
[1746892328343,0.2820144,652.4,650.8,0.92632766]
[1746892328543,0.2820144,652.4,650.8,1.19815699]
[1746892328746,0.2820144,652.4,650.81,2.34610712]
[1746892328947,0.30656979,652.38,650.82,0.92632766]
[1746892329247,0.2820144,652.37,650.83,1.14795013]
[1746892329441,0.2820144,652.37,650.84,0.92632766]
[1746892329845,0.2820144,652.37,650.85,1.14795013]
[1746892330042,0.2820144,652.37,650.86,0.92632766]
[1746892330249,0.2820144,652.37,650.87,0.9263291]
[1746892330550,0.30658388,652.35,650.88,2.07427923]
[1746892330745,0.30658388,652.35,650.89,0.9263291]
[1746892330945,0.2820144,652.34,650.89,0.9263291]
[1746892331149,0.30659798,652.32,650.89,0.9263291]
[1746892331347,0.30659798,652.32,650.9,1.14795013]
[1746892331548,0.2820144,652.31,650.9,1.14795013]
[1746892332049,0.30661208,652.29,650.9,1.14795013]
[1746892332249,0.30661208,652.29,650.66,1.14795013]
[1746892332444,0.30661208,652.29,650.67,0.92655823]
[1746892332748,0.2820144,652.28,650.68,2.07450836]
[1746892332949,0.2820144,652.28,650.69,0.92655823]
[1746892333148,0.2820144,652.28,650.7,0.92653891]
[1746892333347,0.2820144,652.28,650.71,0.92653891]
[1746892333549,0.2820144,652.28,650.72,0.2719077]
[1746892333749,0.2820144,652.28,650.73,0.92653891]
[1746892333947,0.2820144,652.28,650.74,2.34639674]
[1746892334150,0.2820144,652.28,650.75,0.92653891]
[1746892334446,0.2820144,652.28,650.76,1.19844661]
[1746892334651,0.2820144,652.28,650.77,1.19844661]
[1746892334851,0.2820144,652.28,650.78,0.92653891]
[1746892335051,0.2820144,652.28,650.79,2.07414231]
[1746892335248,0.2820144,652.28,650.8,0.92619218]
[1746892335450,0.2820144,652.28,650.8,1.19809988]
[1746892335648,0.2820144,652.28,650.81,0.92619218]
[1746892335951,0.2820144,652.28,650.82,2.07414231]
[1746892336151,0.2820144,652.28,650.83,0.92619218]
[1746892336350,0.2820144,652.28,650.84,2.34605001]
[1746892336548,0.2820144,652.28,650.85,0.92619218]
[1746892336753,0.30662619,652.26,650.86,0.92619218]
[1746892336946,0.30662619,652.26,650.87,2.07414231]
[1746892337147,0.2820144,652.25,650.88,0.92619218]
[1746892337351,0.30664029,652.23,650.89,0.92612456]
[1746892337551,0.30664029,652.23,650.9,0.92612456]
[1746892337747,0.30664029,652.23,650.91,0.92612456]
[1746892338054,0.2820144,652.22,650.91,0.92612456]
[1746892338252,0.3066544,652.2,650.92,1.14795013]
[1746892338453,0.3066544,652.2,650.93,0.92612456]
[1746892339450,0.3066544,652.2,650.94,1.14795013]
[1746892339749,0.3066544,652.2,650.95,0.92612456]
[1746892339954,0.3066544,652.2,650.96,1.14795013]
[1746892340154,0.3066544,652.2,650.97,0.92612456]
[1746892340857,0.28199581,652.19,650.98,1.14795013]
[1746892341153,0.3066685,652.17,650.99,0.92612456]
[1746892341456,0.3066685,652.17,651.0,1.14795013]
[1746892341651,0.3066685,652.17,651.01,0.92612456]
[1746892341855,0.3066685,652.17,651.02,1.14795013]
[1746892342458,0.3066685,652.17,650.89,0.26693872]
[1746892342650,0.3066685,652.17,650.9,0.92710705]
[1746892342856,0.3066685,652.17,650.91,0.92710705]
[1746892343056,0.3066685,652.17,650.92,2.07505718]
[1746892343257,0.28201034,652.16,650.93,0.92710705]
[1746892343659,0.28201034,652.16,650.94,1.14795013]
[1746892343860,0.28201034,652.16,650.95,0.92710705]
[1746892344559,0.28201034,652.16,650.96,1.14795013]
[1746892344760,0.28201034,652.16,650.97,0.92710705]
[1746892344955,0.30668261,652.14,650.98,1.14795013]
[1746892345161,0.30668261,652.14,650.99,0.92710705]
[1746892345474,0.28201034,652.13,651.0,1.14795013]
[1746892345653,0.30669672,652.11,651.0,1.14795013]
[1746892346157,0.30669672,652.11,651.01,0.927847]